Cogmind - Beta 11.1 @@@ ROGUE MODE // 2022.05.02 @ 15:07:48 Player: Olga Result: Self-destructed Performance ------------- Evolutions (3) 1500 Regions Visited (4) 800 Robots Destroyed (10) 50 Value Destroyed (103) 103 Prototype IDs (1) 20 Alien Tech Used (0) 0 Bonus (200) 200 TOTAL SCORE: 2673 Bonus ------- Pacifist 200 Cogmind --------- Core Integrity 333/700 Matter 276/300 Energy 100/100 System Corruption 30% Temperature Cool (0) Movement Core (50) Location -7/Factory Parts ------- > --- POWER (1) -------- (None) > --- PROPULSION (4) --- (None) > --- UTILITY (6) ------ Visual Processing Unit Advanced Visual Processing Unit Improved Terrain Scan Processor Salvage Targeting Computer Improved Melee Analysis Suite > --- WEAPON (2) ------- Scythe > --- INVENTORY (5) ---- Light Nuclear Core Visual Processing Unit Terrain Scan Processor Rocket Launcher Peak State ------------ > --- POWER ------------ (None) > --- PROPULSION ------- (None) > --- UTILITY ---------- Structural Scanner Visual Processing Unit Advanced Visual Processing Unit Improved Terrain Scan Processor Salvage Targeting Computer Improved Melee Analysis Suite > --- WEAPON ----------- Scythe > --- INVENTORY -------- Light Nuclear Core Visual Processing Unit Terrain Scan Processor Rocket Launcher [Rating: 18] Favorites ----------- Power Light Ion Engine Engine Light Ion Engine Power Core Light Nuclear Core Propulsion Flight Unit Flight Unit Flight Unit Utility Visual Processing Unit Device Structural Scanner Processor Visual Processing Unit Weapon Assault Rifle Ballistic Gun Assault Rifle Launcher Rocket Launcher Special Weapon Plasma Cutter Slashing Weapon Scythe Build | -11 -10 -9 -8 -7 ------- Run | Scr Mat Mat Mat Fac Slots Evolved 6 | . . 2 2 2 Power . | . . . . . Propulsion 2 | . . . 1 1 Utility 4 | . . 2 1 1 Weapon . | . . . . . Parts Attached 26 | 1 1 9 7 8 Power 3 | . . 2 . 1 Engine 2 | . . 2 . . Core 1 | . . . . 1 Reactor . | . . . . . Propulsion 5 | . . 3 1 1 Treads . | . . . . . Leg . | . . . . . Wheel . | . . . . . Hover . | . . . . . Flight 5 | . . 3 1 1 Utility 11 | . 1 1 4 5 Device 5 | . . . 4 1 Storage . | . . . . . Processor 6 | . 1 1 . 4 Hackware . | . . . . . Protection . | . . . . . Artifact . | . . . . . Weapon 7 | 1 . 3 2 1 Energy Gun . | . . . . . Energy Cannon . | . . . . . Ballistic Gun 4 | 1 . 1 2 . Ballistic Cannon . | . . . . . Launcher 1 | . . 1 . . Special Weapon 1 | . . 1 . . Impact Weapon . | . . . . . Slashing Weapon 1 | . . . . 1 Piercing Weapon . | . . . . . Special Melee Weapon . | . . . . . Unidentified Prototypes 1 | . . 1 . . Corrupted Parts 2 | . . . . 2 System Corruption 18 | . . . . 18 Parts Lost 10 | . . 1 3 6 Power 1 | . . . 1 . Propulsion 4 | . . . 1 3 Utility 3 | . . . 1 2 Weapon 2 | . . 1 . 1 Highest Loss Streak 9 | . . 1 3 9 To Critical Strikes . | . . . . . Average Slot Usage (%) 53 | . 22 46 87 54 Engine 2 | . . 2 9 . Flight 8 | . . 6 23 5 Device 8 | . . . 19 12 Processor 20 | . 8 20 18 27 Ballistic Gun 10 | . 14 11 18 4 Special Weapon 1 | . . 5 . . Naked Turns . | . . . . . Heaviest Build 9 | 2 2 7 9 7 Greatest Support 14 | 3 3 8 14 8 Greatest Overweight (x) 1 | . . . . 1 Average Overweight (x) . | . . . . . Largest Inventory Capacity 5 | 5 5 5 5 5 Average Capacity 5 | 5 5 5 5 5 Most Carried 5 | 5 5 5 5 5 Average Carried 4 | 5 4 4 3 4 Final Capacity 5 | 5 5 5 5 5 Final Carried 5 | 5 5 5 5 4 Class Distribution -------------------- 100% | Mutant Dominant Class ---------------- Mutant | -10/Materials Mutant | -9/Materials Mutant | -8/Materials Mutant | -7/Factory Resources | -11 -10 -9 -8 -7 ----------- Run | Scr Mat Mat Mat Fac Matter Collected 432 | 200 . 49 141 42 Remotely . | . . . . . Salvage Created 165 | . . 120 23 22 Parts 16 | . . 11 4 1 Haulers Intercepted . | . . . . . Recyclers Shooed . | . . . . . Parts Field Recycled . | . . . . . Retrieved Matter . | . . . . . Parts Self-Destructed . | . . . . . Prevented . | . . . . . Kills | -11 -10 -9 -8 -7 ------- Run | Scr Mat Mat Mat Fac Combat Hostiles Destroyed 6 | . . 5 . 1 Melee 1 | . . . . 1 Guns 2 | . . 2 . . AOE 3 | . . 3 . . Classes Destroyed 5 | . . 4 1 . Worker 1 | . . 1 . . Builder 1 | . . . 1 . Tunneler 1 | . . 1 . . Mechanic 1 | . . 1 . . Swarmer 6 | . . 5 . 1 Best Kill Streak 6 | . . 6 1 1 Combat Bots Only 5 | . . 5 . 1 Max Kills in Single Turn 4 | . . 4 1 1 Gunslinging . | . . . . . Exploded 3 | . . 3 . . Melee 1 | . . . . 1 Uniques/NPCs Destroyed . | . . . . . Combat | -11 -10 -9 -8 -7 -------- Run | Scr Mat Mat Mat Fac Damage Taken 1103 | . 22 213 231 637 Core 568 | . 12 91 98 367 Absorbed by Shields . | . . . . . Core Remaining (%) 88 | 100 95 77 82 . Volleys Fired 13 | . . 12 1 . Largest 2 | . . 2 2 . Hottest 53 | . . 53 40 . Shots Fired 24 | . . 22 2 . Gun 15 | . . 13 2 . Cannon . | . . . . . Launcher 1 | . . 1 . . Special 8 | . . 8 . . Kinetic 15 | . . 13 2 . Thermal 8 | . . 8 . . Explosive 1 | . . 1 . . Electromagnetic . | . . . . . Robot Hit Streak 4 | . . 4 4 . Robot Miss Streak 5 | . . 5 . . Penetration Max . | . . . . . Secondary Targets . | . . . . . Shots Hit Robots 14 | . . 11 2 1 Core Hits 13 | . . 10 2 1 Critical Kills . | . . . . . Critical Parts Destroyed . | . . . . . Critical Strikes . | . . . . . Melee Attacks 2 | . . . . 2 Impact . | . . . . . Slashing 2 | . . . . 2 Piercing . | . . . . . Sneak Attacks . | . . . . . Combat Hostiles . | . . . . . Follow-up Attacks . | . . . . . Damage Inflicted 388 | . . 326 30 32 Guns 86 | . . 65 21 . Cannons . | . . . . . Explosions 195 | . . 195 . . Melee 32 | . . . . 32 Ramming 9 | . . . 9 . Kinetic 86 | . . 65 21 . Thermal 66 | . . 66 . . Explosive 195 | . . 195 . . Electromagnetic . | . . . . . Impact . | . . . . . Slashing 32 | . . . . 32 Piercing . | . . . . . Highest Corruption 30 | . 1 . . 30 Average Corruption 19 | . 1 . . 24 Corruption Purged . | . . . . . Corruption Blocked . | . . . . . Effects 10 | . . . . 10 Matter Fused 1 | . . . . 1 Heat Flow Errors 1 | . . . . 1 Parts Rejected 1 | . . . . 1 Data Loss (minor) 1 | . . . . 1 Data Loss (major) 1 | . . . . 1 Misdirections 5 | . . . . 5 Overload Shots . | . . . . . Overflow Damage 5 | . . 5 . . Projectiles . | . . . . . Explosions 5 | . . 5 . . Melee . | . . . . . Knockbacks . | . . . . . Impact . | . . . . . Kinetic . | . . . . . Secondary . | . . . . . Self-Inflicted Damage 15 | . . 11 4 . Shots 1 | . . 1 . . Rammed 3 | . . . 3 . Targets Rammed 3 | . . . 3 . Kicked . | . . . . . Crushed . | . . . . . Highest Temperature 109 | . . . 18 109 Average Temperature 48 | . . . 18 63 Received Heat Transfer 276 | . 12 39 162 63 Siege Activations . | . . . . . Robots Corrupted . | . . . . . Combat Hostiles . | . . . . . Parts Fried . | . . . . . Impact Corruptions . | . . . . . Robots Melted . | . . . . . Combat Hostiles . | . . . . . Parts Melted 1 | . . 1 . . Heat Transferred 222 | . . 222 . . Parts Sabotaged . | . . . . . Parts Stolen . | . . . . . Parts Stripped . | . . . . . Power Chain Reactions 2 | . . . . 2 Missiles Intercepted . | . . . . . Alert | -11 -10 -9 -8 -7 ------- Run | Scr Mat Mat Mat Fac Peak Influence 212 | . 25 212 130 154 Initial 89 | . . 10 89 54 Average 74 | . 6 72 103 89 Maximum Alert Level 1 | . . 1 . . Low Security (%) 96 | 100 100 90 100 100 Level 1 3 | . . 9 . . Level 2 . | . . . . . Level 3 . | . . . . . Level 4 . | . . . . . Level 5 . | . . . . . High Security . | . . . . . Max Security . | . . . . . Squads Dispatched 7 | . 1 1 3 2 Investigation 6 | . 1 1 2 2 Extermination . | . . . . . Reinforcement 1 | . . . 1 . Assault . | . . . . . Garrison . | . . . . . Intercept . | . . . . . Searches Triggered . | . . . . . Construction Impeded . | . . . . . Haulers Reinforced . | . . . . . Active Scanning Responses . | . . . . . Cargo Convoy Interrupts . | . . . . . Stealth | -11 -10 -9 -8 -7 --------- Run | Scr Mat Mat Mat Fac Distress Signals 5 | . . 2 2 1 Communications Jammed . | . . . . . Distress Signals . | . . . . . Times Spotted 51 | . 5 13 17 16 Peak Tracking Total 17 | . 6 8 17 7 Tactical Retreats 7 | . . 2 2 3 Traps | -11 -10 -9 -8 -7 ------- Run | Scr Mat Mat Mat Fac Traps Triggered 5 | . 2 1 1 1 Indirectly . | . . . . . Trap Hack Attempts . | . . . . . Triggered . | . . . . . Disarmed . | . . . . . Reprogrammed . | . . . . . Reused . | . . . . . Traps Extracted . | . . . . . Installed . | . . . . . Triggered . | . . . . . Machines | -11 -10 -9 -8 -7 ---------- Run | Scr Mat Mat Mat Fac Machines Disabled . | . . . . . Max in Single Turn . | . . . . . Machines Sabotaged . | . . . . . Garrisons Compromised . | . . . . . Overloaded Fab Kills 10 | . . . . 10 Hacking | -11 -10 -9 -8 -7 --------- Run | Scr Mat Mat Mat Fac Machines Accessed 7 | . 2 . 3 2 Terminals 5 | . 2 . 3 . Fabricators 1 | . . . . 1 Repair Stations . | . . . . . Recycling Units . | . . . . . Scanalyzers . | . . . . . Garrison Access 1 | . . . . 1 Total Hacks 23 | . 9 . 11 3 Successful 7 | . 3 . 3 1 Failed 16 | . 6 . 8 2 Catastrophic 5 | . 2 . 1 2 Database Lockouts . | . . . . . Manual 21 | . 8 . 11 2 Terminals 20 | . 9 . 11 . Fabricators 1 | . . . . 1 Repair Stations . | . . . . . Recycling Units . | . . . . . Scanalyzers . | . . . . . Garrison Access 2 | . . . . 2 Terminal Hacks 4 | . 2 . 2 . Terminal Index 2 | . 1 . 1 . Hauler Manifests 1 | . 1 . . . Zone Layout 1 | . . . 1 . Fabricator Hacks . | . . . . . Repair Station Hacks . | . . . . . Recycling Unit Hacks . | . . . . . Scanalyzer . | . . . . . Garrison Access Hacks . | . . . . . Unauthorized Hacks 3 | . 1 . 1 1 Terminals 2 | . 1 . 1 . Botnet 2 | . 1 . 1 . Fabricators 1 | . . . . 1 Overload 1 | . . . . 1 Repair Stations . | . . . . . Recycling Units . | . . . . . Scanalyzers . | . . . . . Garrison Access . | . . . . . Data Cores Recovered . | . . . . . Used . | . . . . . Hacking Detections 6 | . 2 . 3 1 Full Trace Events 3 | . 1 . 1 1 Feedback Events . | . . . . . Feedback Blocked . | . . . . . Robot Schematics Acquired . | . . . . . Robots Built . | . . . . . Authchips . | . . . . . Time . | . . . . . Total Robot Build Rating . | . . . . . Part Schematics Acquired . | . . . . . Parts Built . | . . . . . Authchips . | . . . . . Time . | . . . . . Total Part Build Rating . | . . . . . Parts Repaired . | . . . . . Time . | . . . . . Parts Recycled . | . . . . . Recycled Matter . | . . . . . Retrieved Matter . | . . . . . Retrieved Components . | . . . . . Parts Scanalyzed . | . . . . . Part Schematics Acquired . | . . . . . Parts Damaged . | . . . . . Bothacking | -11 -10 -9 -8 -7 ------------ Run | Scr Mat Mat Mat Fac Used RIF Installer . | . . . . . Robots Hacked . | . . . . . Non-combat . | . . . . . Combat . | . . . . . Robot Hacks Applied . | . . . . . Relay Couplers Released . | . . . . . Fabnet Peak Effective % . | . . . . . Robots Rewired . | . . . . . Allies Hacked . | . . . . . Hacks Repelled . | . . . . . Allies | -11 -10 -9 -8 -7 -------- Run | Scr Mat Mat Mat Fac Total Allies . | . . . . . Largest Group . | . . . . . Highest-Rated Group . | . . . . . Highest-Rated Ally . | . . . . . Total Orders . | . . . . . Ally Attacks . | . . . . . Total Damage . | . . . . . Kills . | . . . . . Allies Corrupted . | . . . . . Allies Melted . | . . . . . Intel | -11 -10 -9 -8 -7 ------- Run | Scr Mat Mat Mat Fac Robot Analysis Total . | . . . . . Derelict Logs Recovered . | . . . . . Drone Launches . | . . . . . Drone Recoveries . | . . . . . Exploration | -11 -10 -9 -8 -7 ------------- Run | Scr Mat Mat Mat Fac Turns Passed 348 | 2 47 116 65 118 Spaces Moved 587 | 2 81 133 142 229 Core 275 | 2 81 85 . 107 Treads . | . . . . . Legs . | . . . . . Wheels . | . . . . . Hover . | . . . . . Flight 312 | . . 48 142 122 Fastest Speed 32 | 50 50 34 32 34 Average Speed 41 | 50 50 44 32 42 Slowest Speed 115 | 50 50 50 34 115 Overloaded Moves . | . . . . . Propulsion Burnouts . | . . . . . Robots Hopped 11 | . . 1 9 1 Cave-ins Triggered . | . . . . . Exploration Rate (%) 18 | 1 25 34 22 11 Regions Visited 4 Branch Regions . Pre-discovered Areas . | . . . . . Known Exits Taken . | . . . . . Unknown Exits Taken 4 | 1 1 1 1 . Scrap Searched . | . . . . . Spaces Dug . | . . . . . Terrain Destroyed 9 | . . 9 . . Melee . | . . . . . Projectile . | . . . . . AOE 9 | . . 9 . . Terrain Rammed . | . . . . . Walls Destroyed . | . . . . . Machines Disabled . | . . . . . Actions | -11 -10 -9 -8 -7 --------- Run | Scr Mat Mat Mat Fac Total 634 | 2 87 157 146 242 Wait . | . . . . . Move 565 | 1 80 130 127 227 Hop 8 | . . 1 6 1 Pick Up 9 | . 3 2 3 1 Fast Attach 14 | 1 1 4 2 6 Attach 7 | . . 3 3 1 Detach 2 | . . 1 . 1 Swap 5 | . . 2 2 1 Drop 7 | . 3 2 . 2 Fire 13 | . . 12 1 . Melee 2 | . . . . 2 Ram 2 | . . . 2 . Kick . | . . . . . Crush . | . . . . . Escape Stasis . | . . . . . Rewire . | . . . . . Trap . | . . . . . Miscellaneous . | . . . . . Route ------- -11/Scrapyard -10/Materials -9/Materials (discovered 2 exits: *Mat / [*Min]) -8/Materials -7/Factory History --------- Turn | Location | Event 1 | -11/Scrapyard | Released all parts (6) 1 | -11/Scrapyard | Discovered new exit (range 1) 3 | -11/Scrapyard | Entered Materials 43 | -10/Materials | Discovered new exit (range 14) 50 | -10/Materials | Entered another Materials area 50 | -9/Materials | Evolved 2 slots: Utility x2 89 | -9/Materials | Discovered new exit (range 14) 166 | -9/Materials | Discovered new exit (range 3) 166 | -9/Materials | Entered another Materials area 166 | -8/Materials | Evolved 2 slots: Propulsion x1, Utility x1 227 | -8/Materials | Discovered new exit (range 5) 231 | -8/Materials | Entered Factory 231 | -7/Factory | Evolved 2 slots: Propulsion x1, Utility x1 276 | -7/Factory | System corruption reached 10% 278 | -7/Factory | System corruption reached 30% 317 | -7/Factory | Lost 9 parts (1p4n3u1w) 342 | -7/Factory | Build established: Mutant 348 | -7/Factory | Core integrity fell below 50% 349 | -7/Factory | Self-destructed Last Messages --------------- 00314_ Acquired Imp. Melee Analysis Suite. 00318_ System corrupted: Substantial component data lost. 00321_ Discarded Salvage Targeting Computer. 00326_ S-27 Virus destroyed. 00329_ Acquired 22 matter. 00333_ System corrupted: Structural Scanner rejected. 00333_ K-01 Serf pushes L-41 Fighter. 00334_ W-25 Informer sends out distress signal. 00335_ K-01 Serf latches onto L-41 Fighter. 00335_ K-01 Serf pushes L-41 Fighter. 00337_ Slug penetrates Wall. 00338_ K-01 Serf pushes L-41 Fighter. 00340_ K-01 Serf latches onto L-41 Fighter. 00340_ K-01 Serf pushes L-41 Fighter. 00340_ Slug penetrates Wall. 00340_ K-01 Serf collects debris. 00341_ K-01 Serf pushes L-41 Fighter. 00345_ K-01 Serf collects debris. 00345_ K-01 Serf pushes L-41 Fighter. 00347_ Penetrated by Slug. Map ----- +----------------------------------------------------+ | ?????????????????????????????????????????????????? | | ?????????????????????????????????????????????????? | | ?????????????????????????????????????????????????? | | ?????????????????????????????????????????????????? | | ?????????????????????????????????????????????????? | | ?????????????????????????????????????????????????? | | ?????????????????????????????????????????????????? | | ?????????????????????????????????????????????????? | | ?????????????????????????????????????????????????? | | ?????????????????????????????????????????????????? | | ?????????????????????????????????????????????????? | | ?????????????????????????????????????????????????? | | ?????????????????????????????????????????????????? | | ?????????????????????????????????????????????????? | | ?????????????????????????????????????????????????? | | ?????????????????????????????????????????????????? | | #############????????????????????????????????????? | | #????????????????????????????????????? | | #????????????????????????????????????? | | #????????????????????????????????????? | | #????????????????????????????????????? | | ?????????????????????????????????????? | | ? ???????????????????????????????????????? | | ?????????????????????????????????????????? | | #####+###########+#+############# #??????? | | k tl @ u +??????? | | ########### #??????? | | #??????????????????????????? | | g #??????????????????????????? | | #??????????????????????????? | | ###### #########+####??????????????????????????? | | ### #?????? ????????????????????????????? | | "" ### #????"""" """"??????????????????????????? | | "" ### #??# """" """" ????????????????????????? | | "" ### #??# """" """" #???????????????????????? | | ### #??# """" """" #???????????????????????? | | "" ### #??# #???????????????????????? | | "" ### #??# """" """" #???????????????????????? | | "" ## ?????""" """???#???????????????????????? | | ## ??????"" ""????????????????????????????? | | ##### ??????" "?????????????????????????????? | | #### #?????? ?????????????????????????????? | | ##?# #?????? ?????????????????????????????? | | ##?# #??????###?????????????????????????????? | | ##?# ???????????????????????????????????????? | | ##?# ???????????????????????????????????????? | | ##??? ????????????????????????????????????????? | | ##??????????????????????????????????????????????? | | ##??????????????????????????????????????????????? | | ###??????????????????????????????????????????????? | +----------------------------------------------------+ Best States ------------- Heat Dissipation 34 Energy Generation 14 Energy Capacity 280 Matter Stores 294 Matter Capacity 300 Sight Range 20 Robot Scan Range 14 Terrain Scan Density 110 Additional Mass Support 6 Evasion (%) 71 Melee Accuracy 6 Salvage Targeting 2 Item Schematics ----------------- None Robot Schematics ------------------ None Fabricated ------------ Nothing Alien Tech Used ----------------- None Achievements -------------- None Challenges ------------ None Game ------ Seed SpacefoldModifiedFacilitator Manual? 0 Play Time 00:11:31 Cumulative 159.7 hours Start 2022.05.02 @ 14:56:42 End 2022.05.02 @ 15:07:48 Sessions 1 Manual Loads 0 Difficulty Rogue Special Mode None Game No. 260 Rogue 259 Adventurer 0 Explorer 1 Win Type - Total 7 Types 7/0/0/0/0/0/0/0/0 Lore% 60 Gallery% 63 Achievement% 53 Wizard Run 0 Options --------- ASCII 1 Keyboard 0 Movement Vi Keybinds 0 Fullscreen 1 Font 18/SmallcapsGlow Map View 76x50 Tactical HUD 1 Map Filters NONE Filters NONE Steam 1 RUN: e6cd1987-cc7e-4d1e-b46d-24a58d6fdfcb